{"text_format":"3","workbook":"xlsx","n_sheets":1,"sheets":["Μηνιαίος οικογ. προϋπολογισμός"],"read":"whole","date_system":"1900"}

{"sheet":"Μηνιαίος οικογ. προϋπολογισμός","index":0,"n_rows":67,"n_cols":10,"rows_kept":67}
[null,"Μηνιαίος οικογενειακός προϋπολογισμός"]
[null,"Πίνακας σύνοψης","Σύνολο\nΠροβλεπόμενα έξοδα","Σύνολο\nΠραγματικά έξοδα","Σύνολο\nΔιαφορά",null,"Πηγή προβλεπόμενου μηνιαίου εισοδήματος","Ποσότητα"]
[null,null,{"$f":"Στέγαση[[#Totals],[Προβλεπόμενα\nΈξοδα]]+Μετακινήσεις[[#Totals],[Προβλεπόμενα\nΈξοδα]]+Ασφάλεια[[#Totals],[Προβλεπόμενα\nΈξοδα]]+Τρόφιμα[[#Totals],[Προβλεπόμενα\nΈξοδα]]+Παιδιά[[#Totals],[Προβλεπόμενα\nΈξοδα]]+Νομικά[[#Totals],[Προβλεπόμενα\nΈξοδα]]+Αποταμιεύσεις[[#Totals],[Προβλεπόμενα\nΈξοδα]]+Δάνεια[[#Totals],[Προβλεπόμενα\nΈξοδα]]+Διασκέδαση[[#Totals],[Προβλεπόμενα\nΈξοδα]]+Φόροι[[#Totals],[Προβλεπόμενα \nΈξοδα]]+ΠροσωπικήΦροντίδα[[#Totals],[Προβλεπόμενα\nΈξοδα]]+Κατοικίδια[[#Totals],[Προβλεπόμενα\nΈξοδα]]+Δώρα[[#Totals],[Προβλεπόμενα\nΈξοδα]]","v":{"v":1203,"d":"1,203 €"}},{"$f":"Στέγαση[[#Totals],[Πραγματικά\nΈξοδα]]+Μετακινήσεις[[#Totals],[Πραγματικά\nΈξοδα]]+Ασφάλεια[[#Totals],[Πραγματικά\nΈξοδα]]+Τρόφιμα[[#Totals],[Πραγματικά\nΈξοδα]]+Παιδιά[[#Totals],[Πραγματικά\nΈξοδα]]+Νομικά[[#Totals],[Πραγματικά\nΈξοδα]]+Αποταμιεύσεις[[#Totals],[Πραγματικά\nΈξοδα]]+Δάνεια[[#Totals],[Πραγματικά\nΈξοδα]]+Διασκέδαση[[#Totals],[Πραγματικά\nΈξοδα]]+Φόροι[[#Totals],[Πραγματικά \nΈξοδα]]+ΠροσωπικήΦροντίδα[[#Totals],[Πραγματικά\nΈξοδα]]+Κατοικίδια[[#Totals],[Πραγματικά\nΈξοδα]]+Δώρα[[#Totals],[Πραγματικά\nΈξοδα]]","v":{"v":1317,"d":"1,317 €"}},{"$f":"Στέγαση[[#Totals],[Διαφορά]]+Μετακινήσεις[[#Totals],[Διαφορά]]+Ασφάλεια[[#Totals],[Διαφορά]]+Τρόφιμα[[#Totals],[Διαφορά]]+Παιδιά[[#Totals],[Διαφορά]]+Νομικά[[#Totals],[Διαφορά]]+Αποταμιεύσεις[[#Totals],[Διαφορά]]+Δάνεια[[#Totals],[Διαφορά]]+Διασκέδαση[[#Totals],[Διαφορά]]+Φόροι[[#Totals],[Διαφορά]]+ΠροσωπικήΦροντίδα[[#Totals],[Διαφορά]]+Κατοικίδια[[#Totals],[Διαφορά]]+Δώρα[[#Totals],[Διαφορά]]","v":{"v":-114,"d":"-114 €"}},null,"Εισόδημα 1",{"v":4000,"d":"4,000 €"}]
[{"$nulls":6},"Εισόδημα 2",{"v":1200,"d":"1,200 €"}]
[null,"Στέγαση","Προβλεπόμενα\nΈξοδα","Πραγματικά\nΈξοδα","Διαφορά",null,"Επιπλέον εισόδημα",{"v":300,"d":"300 €"}]
[null,"Στεγαστικό ή ενοίκιο",{"v":1000,"d":"1,000 €"},{"v":1000,"d":"1,000 €"},{"$f":"Στέγαση[Προβλεπόμενα\nΈξοδα]-Στέγαση[Πραγματικά\nΈξοδα]","v":{"v":0,"d":"0 €"}},null,"Συνολικό μηνιαίο εισόδημα",{"$f":"SUM(H3:H5)","v":{"v":5500,"d":"5,500 €"}}]
[null,"Δεύτερο στεγαστικό ή ενοίκιο",{"v":0,"d":"0 €"},{"v":0,"d":"0 €"},{"$f":"Στέγαση[Προβλεπόμενα\nΈξοδα]-Στέγαση[Πραγματικά\nΈξοδα]","v":{"v":0,"d":"0 €"}}]
[null,"Τηλέφωνο",{"v":62,"d":"62 €"},{"v":100,"d":"100 €"},{"$f":"Στέγαση[Προβλεπόμενα\nΈξοδα]-Στέγαση[Πραγματικά\nΈξοδα]","v":{"v":-38,"d":"-38 €"}},null,"Πηγή πραγματικού μηνιαίου εισοδήματος","Ποσό"]
[null,"Ηλεκτρικό",{"v":44,"d":"44 €"},{"v":125,"d":"125 €"},{"$f":"Στέγαση[Προβλεπόμενα\nΈξοδα]-Στέγαση[Πραγματικά\nΈξοδα]","v":{"v":-81,"d":"-81 €"}},null,"Εισόδημα 1",{"v":4000,"d":"4,000 €"}]
[null,"Αέριο",{"v":22,"d":"22 €"},{"v":35,"d":"35 €"},{"$f":"Στέγαση[Προβλεπόμενα\nΈξοδα]-Στέγαση[Πραγματικά\nΈξοδα]","v":{"v":-13,"d":"-13 €"}},null,"Εισόδημα 2",{"v":1200,"d":"1,200 €"}]
[null,"Ύδρευση και αποχέτευση",{"v":8,"d":"8 €"},{"v":8,"d":"8 €"},{"$f":"Στέγαση[Προβλεπόμενα\nΈξοδα]-Στέγαση[Πραγματικά\nΈξοδα]","v":{"v":0,"d":"0 €"}},null,"Επιπλέον εισόδημα",{"v":300,"d":"300 €"}]
[null,"Συνδρομητική τηλεόραση",{"v":34,"d":"34 €"},{"v":39,"d":"39 €"},{"$f":"Στέγαση[Προβλεπόμενα\nΈξοδα]-Στέγαση[Πραγματικά\nΈξοδα]","v":{"v":-5,"d":"-5 €"}},null,"Συνολικό μηνιαίο εισόδημα",{"$f":"SUM(H9:H11)","v":{"v":5500,"d":"5,500 €"}}]
[null,"Αποκομιδή σκουπιδιών",{"v":10,"d":"10 €"},{"v":10,"d":"10 €"},{"$f":"Στέγαση[Προβλεπόμενα\nΈξοδα]-Στέγαση[Πραγματικά\nΈξοδα]","v":{"v":0,"d":"0 €"}}]
[null,"Συντήρηση ή επισκευές",{"v":23,"d":"23 €"},{"v":0,"d":"0 €"},{"$f":"Στέγαση[Προβλεπόμενα\nΈξοδα]-Στέγαση[Πραγματικά\nΈξοδα]","v":{"v":23,"d":"23 €"}},null,"Υπόλοιπο","Ποσό"]
[null,"Προμήθειες",{"v":0,"d":"0 €"},{"v":0,"d":"0 €"},{"$f":"Στέγαση[Προβλεπόμενα\nΈξοδα]-Στέγαση[Πραγματικά\nΈξοδα]","v":{"v":0,"d":"0 €"}},null,"Προβλεπόμενο υπόλοιπο",{"$f":"SUM(H6-'Μηνιαίος οικογ. προϋπολογισμός'!$C$3:$C$3)","v":{"v":4297,"d":"4,297 €"}}]
[null,"Άλλο",{"v":0,"d":"0 €"},{"v":0,"d":"0 €"},{"$f":"Στέγαση[Προβλεπόμενα\nΈξοδα]-Στέγαση[Πραγματικά\nΈξοδα]","v":{"v":0,"d":"0 €"}},null,"Πραγματικό υπόλοιπο",{"$f":"SUM(H12-D3)","v":{"v":4183,"d":"4,183 €"}}]
[null,"Άθροισμα",{"$f":"SUBTOTAL(109,Στέγαση[Προβλεπόμενα\nΈξοδα])","v":{"v":1203,"d":"1,203 €"}},{"$f":"SUBTOTAL(109,Στέγαση[Πραγματικά\nΈξοδα])","v":{"v":1317,"d":"1,317 €"}},{"$f":"SUBTOTAL(109,Στέγαση[Διαφορά])","v":{"v":-114,"d":"-114 €"}},null,"Διαφορά",{"$f":"SUM(H16-H15)","v":{"v":-114,"d":"-114 €"}}]
[]
[null,"Μετακινήσεις","Προβλεπόμενα\nΈξοδα","Πραγματικά\nΈξοδα","Διαφορά",null,"Δάνεια","Προβλεπόμενα\nΈξοδα","Πραγματικά\nΈξοδα","Διαφορά"]
[null,"Δόση οχήματος 1",null,null,{"$f":"Μετακινήσεις[Προβλεπόμενα\nΈξοδα]-Μετακινήσεις[Πραγματικά\nΈξοδα]","v":{"v":0,"d":"0 €"}},null,"Προσωπικό",null,null,{"$f":"Δάνεια[Προβλεπόμενα\nΈξοδα]-Δάνεια[Πραγματικά\nΈξοδα]","v":{"v":0,"d":"0 €"}}]
[null,"Δόση οχήματος 2",null,null,{"$f":"Μετακινήσεις[Προβλεπόμενα\nΈξοδα]-Μετακινήσεις[Πραγματικά\nΈξοδα]","v":{"v":0,"d":"0 €"}},null,"Φοιτητικό",null,null,{"$f":"Δάνεια[Προβλεπόμενα\nΈξοδα]-Δάνεια[Πραγματικά\nΈξοδα]","v":{"v":0,"d":"0 €"}}]
[null,"Ναύλα λεωφορείου/ταξί",null,null,{"$f":"Μετακινήσεις[Προβλεπόμενα\nΈξοδα]-Μετακινήσεις[Πραγματικά\nΈξοδα]","v":{"v":0,"d":"0 €"}},null,"Πιστωτική κάρτα",null,null,{"$f":"Δάνεια[Προβλεπόμενα\nΈξοδα]-Δάνεια[Πραγματικά\nΈξοδα]","v":{"v":0,"d":"0 €"}}]
[null,"Ασφάλεια",null,null,{"$f":"Μετακινήσεις[Προβλεπόμενα\nΈξοδα]-Μετακινήσεις[Πραγματικά\nΈξοδα]","v":{"v":0,"d":"0 €"}},null,"Πιστωτική κάρτα",null,null,{"$f":"Δάνεια[Προβλεπόμενα\nΈξοδα]-Δάνεια[Πραγματικά\nΈξοδα]","v":{"v":0,"d":"0 €"}}]
[null,"Τέλη κυκλοφορίας",null,null,{"$f":"Μετακινήσεις[Προβλεπόμενα\nΈξοδα]-Μετακινήσεις[Πραγματικά\nΈξοδα]","v":{"v":0,"d":"0 €"}},null,"Πιστωτική κάρτα",null,null,{"$f":"Δάνεια[Προβλεπόμενα\nΈξοδα]-Δάνεια[Πραγματικά\nΈξοδα]","v":{"v":0,"d":"0 €"}}]
[null,"Καύσιμα",null,null,{"$f":"Μετακινήσεις[Προβλεπόμενα\nΈξοδα]-Μετακινήσεις[Πραγματικά\nΈξοδα]","v":{"v":0,"d":"0 €"}},null,"Άλλο",null,null,{"$f":"Δάνεια[Προβλεπόμενα\nΈξοδα]-Δάνεια[Πραγματικά\nΈξοδα]","v":{"v":0,"d":"0 €"}}]
[null,"Συντήρηση",null,null,{"$f":"Μετακινήσεις[Προβλεπόμενα\nΈξοδα]-Μετακινήσεις[Πραγματικά\nΈξοδα]","v":{"v":0,"d":"0 €"}},null,"Άθροισμα",{"$f":"SUBTOTAL(109,Δάνεια[Προβλεπόμενα\nΈξοδα])","v":{"v":0,"d":"0 €"}},{"$f":"SUBTOTAL(109,Δάνεια[Πραγματικά\nΈξοδα])","v":{"v":0,"d":"0 €"}},{"$f":"SUBTOTAL(109,Δάνεια[Διαφορά])","v":{"v":0,"d":"0 €"}}]
[null,"Άλλο",null,null,{"$f":"Μετακινήσεις[Προβλεπόμενα\nΈξοδα]-Μετακινήσεις[Πραγματικά\nΈξοδα]","v":{"v":0,"d":"0 €"}}]
[null,"Άθροισμα",{"$f":"SUBTOTAL(109,Μετακινήσεις[Προβλεπόμενα\nΈξοδα])","v":{"v":0,"d":"0 €"}},{"$f":"SUBTOTAL(109,Μετακινήσεις[Πραγματικά\nΈξοδα])","v":{"v":0,"d":"0 €"}},{"$f":"SUBTOTAL(109,Μετακινήσεις[Διαφορά])","v":{"v":0,"d":"0 €"}},null,"Ψυχαγωγία","Προβλεπόμενα\nΈξοδα","Πραγματικά\nΈξοδα","Διαφορά"]
[{"$nulls":6},"Βίντεο/DVD",null,null,{"$f":"Διασκέδαση[Προβλεπόμενα\nΈξοδα]-Διασκέδαση[Πραγματικά\nΈξοδα]","v":{"v":0,"d":"0 €"}}]
[null,"Ασφάλεια","Προβλεπόμενα\nΈξοδα","Πραγματικά\nΈξοδα","Διαφορά",null,"CD",null,null,{"$f":"Διασκέδαση[Προβλεπόμενα\nΈξοδα]-Διασκέδαση[Πραγματικά\nΈξοδα]","v":{"v":0,"d":"0 €"}}]
[null,"Κατοικίας",null,null,{"$f":"Ασφάλεια[Προβλεπόμενα\nΈξοδα]-Ασφάλεια[Πραγματικά\nΈξοδα]","v":{"v":0,"d":"0 €"}},null,"Ταινίες",null,null,{"$f":"Διασκέδαση[Προβλεπόμενα\nΈξοδα]-Διασκέδαση[Πραγματικά\nΈξοδα]","v":{"v":0,"d":"0 €"}}]
[null,"Υγείας",null,null,{"$f":"Ασφάλεια[Προβλεπόμενα\nΈξοδα]-Ασφάλεια[Πραγματικά\nΈξοδα]","v":{"v":0,"d":"0 €"}},null,"Συναυλίες",null,null,{"$f":"Διασκέδαση[Προβλεπόμενα\nΈξοδα]-Διασκέδαση[Πραγματικά\nΈξοδα]","v":{"v":0,"d":"0 €"}}]
[null,"Ζωής",null,null,{"$f":"Ασφάλεια[Προβλεπόμενα\nΈξοδα]-Ασφάλεια[Πραγματικά\nΈξοδα]","v":{"v":0,"d":"0 €"}},null,"Αθλητικές εκδηλώσεις",null,null,{"$f":"Διασκέδαση[Προβλεπόμενα\nΈξοδα]-Διασκέδαση[Πραγματικά\nΈξοδα]","v":{"v":0,"d":"0 €"}}]
[null,"Άλλο",null,null,{"$f":"Ασφάλεια[Προβλεπόμενα\nΈξοδα]-Ασφάλεια[Πραγματικά\nΈξοδα]","v":{"v":0,"d":"0 €"}},null,"Θέατρο",null,null,{"$f":"Διασκέδαση[Προβλεπόμενα\nΈξοδα]-Διασκέδαση[Πραγματικά\nΈξοδα]","v":{"v":0,"d":"0 €"}}]
[null,"Άθροισμα",{"$f":"SUBTOTAL(109,Ασφάλεια[Προβλεπόμενα\nΈξοδα])","v":{"v":0,"d":"0 €"}},{"$f":"SUBTOTAL(109,Ασφάλεια[Πραγματικά\nΈξοδα])","v":{"v":0,"d":"0 €"}},{"$f":"SUBTOTAL(109,Ασφάλεια[Διαφορά])","v":{"v":0,"d":"0 €"}},null,"Άλλο",null,null,{"$f":"Διασκέδαση[Προβλεπόμενα\nΈξοδα]-Διασκέδαση[Πραγματικά\nΈξοδα]","v":{"v":0,"d":"0 €"}}]
[{"$nulls":6},"Άθροισμα",{"$f":"SUBTOTAL(109,Διασκέδαση[Προβλεπόμενα\nΈξοδα])","v":{"v":0,"d":"0 €"}},{"$f":"SUBTOTAL(109,Διασκέδαση[Πραγματικά\nΈξοδα])","v":{"v":0,"d":"0 €"}},{"$f":"SUBTOTAL(109,Διασκέδαση[Διαφορά])","v":{"v":0,"d":"0 €"}}]
[null,"Φαγητό","Προβλεπόμενα\nΈξοδα","Πραγματικά\nΈξοδα","Διαφορά"]
[null,"Ψώνια",null,null,{"$f":"Τρόφιμα[Προβλεπόμενα\nΈξοδα]-Τρόφιμα[Πραγματικά\nΈξοδα]","v":{"v":0,"d":"0 €"}},null,"Φόροι","Προβλεπόμενα \nΈξοδα","Πραγματικά \nΈξοδα","Διαφορά"]
[null,"Εστιατόρια",null,null,{"$f":"Τρόφιμα[Προβλεπόμενα\nΈξοδα]-Τρόφιμα[Πραγματικά\nΈξοδα]","v":{"v":0,"d":"0 €"}},null,"Εθνικοί",null,null,{"$f":"Φόροι[Προβλεπόμενα \nΈξοδα]-Φόροι[Πραγματικά \nΈξοδα]","v":{"v":0,"d":"0 €"}}]
[null,"Άλλο",null,null,{"$f":"Τρόφιμα[Προβλεπόμενα\nΈξοδα]-Τρόφιμα[Πραγματικά\nΈξοδα]","v":{"v":0,"d":"0 €"}},null,"Περιφερειακοί",null,null,{"$f":"Φόροι[Προβλεπόμενα \nΈξοδα]-Φόροι[Πραγματικά \nΈξοδα]","v":{"v":0,"d":"0 €"}}]
[null,"Άθροισμα",{"$f":"SUBTOTAL(109,Τρόφιμα[Προβλεπόμενα\nΈξοδα])","v":{"v":0,"d":"0 €"}},{"$f":"SUBTOTAL(109,Τρόφιμα[Πραγματικά\nΈξοδα])","v":{"v":0,"d":"0 €"}},{"$f":"SUBTOTAL(109,Τρόφιμα[Διαφορά])","v":{"v":0,"d":"0 €"}},null,"Δημοτικοί",null,null,{"$f":"Φόροι[Προβλεπόμενα \nΈξοδα]-Φόροι[Πραγματικά \nΈξοδα]","v":{"v":0,"d":"0 €"}}]
[{"$nulls":6},"Άλλο",null,null,{"$f":"Φόροι[Προβλεπόμενα \nΈξοδα]-Φόροι[Πραγματικά \nΈξοδα]","v":{"v":0,"d":"0 €"}}]
[null,"Παιδιά","Προβλεπόμενα\nΈξοδα","Πραγματικά\nΈξοδα","Διαφορά",null,"Άθροισμα",{"$f":"SUBTOTAL(109,Φόροι[Προβλεπόμενα \nΈξοδα])","v":{"v":0,"d":"0 €"}},{"$f":"SUBTOTAL(109,Φόροι[Πραγματικά \nΈξοδα])","v":{"v":0,"d":"0 €"}},{"$f":"SUBTOTAL(109,Φόροι[Διαφορά])","v":{"v":0,"d":"0 €"}}]
[null,"Ιατρικά",null,null,{"$f":"Παιδιά[Προβλεπόμενα\nΈξοδα]-Παιδιά[Πραγματικά\nΈξοδα]","v":{"v":0,"d":"0 €"}}]
[null,"Ρούχα",null,null,{"$f":"Παιδιά[Προβλεπόμενα\nΈξοδα]-Παιδιά[Πραγματικά\nΈξοδα]","v":{"v":0,"d":"0 €"}},null,"Προσωπική φροντίδα","Προβλεπόμενα\nΈξοδα","Πραγματικά\nΈξοδα","Διαφορά"]
[null,"Δίδακτρα",null,null,{"$f":"Παιδιά[Προβλεπόμενα\nΈξοδα]-Παιδιά[Πραγματικά\nΈξοδα]","v":{"v":0,"d":"0 €"}},null,"Ιατρικά",null,null,{"$f":"ΠροσωπικήΦροντίδα[Προβλεπόμενα\nΈξοδα]-ΠροσωπικήΦροντίδα[Πραγματικά\nΈξοδα]","v":{"v":0,"d":"0 €"}}]
[null,"Υλικά σχολείου",null,null,{"$f":"Παιδιά[Προβλεπόμενα\nΈξοδα]-Παιδιά[Πραγματικά\nΈξοδα]","v":{"v":0,"d":"0 €"}},null,"Κομμωτήριο",null,null,{"$f":"ΠροσωπικήΦροντίδα[Προβλεπόμενα\nΈξοδα]-ΠροσωπικήΦροντίδα[Πραγματικά\nΈξοδα]","v":{"v":0,"d":"0 €"}}]
[null,"Συμμετοχή σε οργανώσεις",null,null,{"$f":"Παιδιά[Προβλεπόμενα\nΈξοδα]-Παιδιά[Πραγματικά\nΈξοδα]","v":{"v":0,"d":"0 €"}},null,"Ρούχα",null,null,{"$f":"ΠροσωπικήΦροντίδα[Προβλεπόμενα\nΈξοδα]-ΠροσωπικήΦροντίδα[Πραγματικά\nΈξοδα]","v":{"v":0,"d":"0 €"}}]
[null,"Χρήματα για κολατσιό",null,null,{"$f":"Παιδιά[Προβλεπόμενα\nΈξοδα]-Παιδιά[Πραγματικά\nΈξοδα]","v":{"v":0,"d":"0 €"}},null,"Στεγνοκαθαριστήριο",null,null,{"$f":"ΠροσωπικήΦροντίδα[Προβλεπόμενα\nΈξοδα]-ΠροσωπικήΦροντίδα[Πραγματικά\nΈξοδα]","v":{"v":0,"d":"0 €"}}]
[null,"Μπέιμπι σίτερ",null,null,{"$f":"Παιδιά[Προβλεπόμενα\nΈξοδα]-Παιδιά[Πραγματικά\nΈξοδα]","v":{"v":0,"d":"0 €"}},null,"Γυμναστήριο",null,null,{"$f":"ΠροσωπικήΦροντίδα[Προβλεπόμενα\nΈξοδα]-ΠροσωπικήΦροντίδα[Πραγματικά\nΈξοδα]","v":{"v":0,"d":"0 €"}}]
[null,"Παιχνίδια/δραστηριότητες",null,null,{"$f":"Παιδιά[Προβλεπόμενα\nΈξοδα]-Παιδιά[Πραγματικά\nΈξοδα]","v":{"v":0,"d":"0 €"}},null,"Συμμετοχή σε οργανώσεις",null,null,{"$f":"ΠροσωπικήΦροντίδα[Προβλεπόμενα\nΈξοδα]-ΠροσωπικήΦροντίδα[Πραγματικά\nΈξοδα]","v":{"v":0,"d":"0 €"}}]
[null,"Άλλο",null,null,{"$f":"Παιδιά[Προβλεπόμενα\nΈξοδα]-Παιδιά[Πραγματικά\nΈξοδα]","v":{"v":0,"d":"0 €"}},null,"Άλλο",null,null,{"$f":"ΠροσωπικήΦροντίδα[Προβλεπόμενα\nΈξοδα]-ΠροσωπικήΦροντίδα[Πραγματικά\nΈξοδα]","v":{"v":0,"d":"0 €"}}]
[null,"Άθροισμα",{"$f":"SUBTOTAL(109,Παιδιά[Προβλεπόμενα\nΈξοδα])","v":{"v":0,"d":"0 €"}},{"$f":"SUBTOTAL(109,Παιδιά[Πραγματικά\nΈξοδα])","v":{"v":0,"d":"0 €"}},{"$f":"SUBTOTAL(109,Παιδιά[Διαφορά])","v":{"v":0,"d":"0 €"}},null,"Άθροισμα",{"$f":"SUBTOTAL(109,ΠροσωπικήΦροντίδα[Προβλεπόμενα\nΈξοδα])","v":{"v":0,"d":"0 €"}},{"$f":"SUBTOTAL(109,ΠροσωπικήΦροντίδα[Πραγματικά\nΈξοδα])","v":{"v":0,"d":"0 €"}},{"$f":"SUBTOTAL(109,ΠροσωπικήΦροντίδα[Διαφορά])","v":{"v":0,"d":"0 €"}}]
[]
[null,"Νομικά","Προβλεπόμενα\nΈξοδα","Πραγματικά\nΈξοδα","Διαφορά",null,"Κατοικίδια","Προβλεπόμενα\nΈξοδα","Πραγματικά\nΈξοδα","Διαφορά"]
[null,"Δικηγόρος",null,null,{"$f":"Νομικά[Προβλεπόμενα\nΈξοδα]-Νομικά[Πραγματικά\nΈξοδα]","v":{"v":0,"d":"0 €"}},null,"Τροφή",null,null,{"$f":"Κατοικίδια[Προβλεπόμενα\nΈξοδα]-Κατοικίδια[Πραγματικά\nΈξοδα]","v":{"v":0,"d":"0 €"}}]
[null,"Διατροφή",null,null,{"$f":"Νομικά[Προβλεπόμενα\nΈξοδα]-Νομικά[Πραγματικά\nΈξοδα]","v":{"v":0,"d":"0 €"}},null,"Ιατρικά",null,null,{"$f":"Κατοικίδια[Προβλεπόμενα\nΈξοδα]-Κατοικίδια[Πραγματικά\nΈξοδα]","v":{"v":0,"d":"0 €"}}]
[null,"Αμοιβές",null,null,{"$f":"Νομικά[Προβλεπόμενα\nΈξοδα]-Νομικά[Πραγματικά\nΈξοδα]","v":{"v":0,"d":"0 €"}},null,"Περιποίηση",null,null,{"$f":"Κατοικίδια[Προβλεπόμενα\nΈξοδα]-Κατοικίδια[Πραγματικά\nΈξοδα]","v":{"v":0,"d":"0 €"}}]
[null,"Άλλο",null,null,{"$f":"Νομικά[Προβλεπόμενα\nΈξοδα]-Νομικά[Πραγματικά\nΈξοδα]","v":{"v":0,"d":"0 €"}},null,"Παιχνίδια",null,null,{"$f":"Κατοικίδια[Προβλεπόμενα\nΈξοδα]-Κατοικίδια[Πραγματικά\nΈξοδα]","v":{"v":0,"d":"0 €"}}]
[null,"Άθροισμα",{"$f":"SUBTOTAL(109,Νομικά[Προβλεπόμενα\nΈξοδα])","v":{"v":0,"d":"0 €"}},{"$f":"SUBTOTAL(109,Νομικά[Πραγματικά\nΈξοδα])","v":{"v":0,"d":"0 €"}},{"$f":"SUBTOTAL(109,Νομικά[Διαφορά])","v":{"v":0,"d":"0 €"}},null,"Άλλο",null,null,{"$f":"Κατοικίδια[Προβλεπόμενα\nΈξοδα]-Κατοικίδια[Πραγματικά\nΈξοδα]","v":{"v":0,"d":"0 €"}}]
[{"$nulls":6},"Άθροισμα",{"$f":"SUBTOTAL(109,Κατοικίδια[Προβλεπόμενα\nΈξοδα])","v":{"v":0,"d":"0 €"}},{"$f":"SUBTOTAL(109,Κατοικίδια[Πραγματικά\nΈξοδα])","v":{"v":0,"d":"0 €"}},{"$f":"SUBTOTAL(109,Κατοικίδια[Διαφορά])","v":{"v":0,"d":"0 €"}}]
[null,"Αποταμιεύσεις/Επενδύσεις","Προβλεπόμενα\nΈξοδα","Πραγματικά\nΈξοδα","Διαφορά"]
[null,"Λογαριασμός συνταξιοδότησης",null,null,{"$f":"Αποταμιεύσεις[Προβλεπόμενα\nΈξοδα]-Αποταμιεύσεις[Πραγματικά\nΈξοδα]","v":{"v":0,"d":"0 €"}},null,"Δώρα και δωρεές","Προβλεπόμενα\nΈξοδα","Πραγματικά\nΈξοδα","Διαφορά"]
[null,"Επενδυτικός λογαριασμός",null,null,{"$f":"Αποταμιεύσεις[Προβλεπόμενα\nΈξοδα]-Αποταμιεύσεις[Πραγματικά\nΈξοδα]","v":{"v":0,"d":"0 €"}},null,"Φιλανθρωπική οργάνωση 1",null,null,{"$f":"Δώρα[Προβλεπόμενα\nΈξοδα]-Δώρα[Πραγματικά\nΈξοδα]","v":{"v":0,"d":"0 €"}}]
[null,"Πανεπιστήμιο",null,null,{"$f":"Αποταμιεύσεις[Προβλεπόμενα\nΈξοδα]-Αποταμιεύσεις[Πραγματικά\nΈξοδα]","v":{"v":0,"d":"0 €"}},null,"Φιλανθρωπική οργάνωση 2",null,null,{"$f":"Δώρα[Προβλεπόμενα\nΈξοδα]-Δώρα[Πραγματικά\nΈξοδα]","v":{"v":0,"d":"0 €"}}]
[null,"Άλλο",null,null,{"$f":"Αποταμιεύσεις[Προβλεπόμενα\nΈξοδα]-Αποταμιεύσεις[Πραγματικά\nΈξοδα]","v":{"v":0,"d":"0 €"}},null,"Φιλανθρωπική οργάνωση 3",null,null,{"$f":"Δώρα[Προβλεπόμενα\nΈξοδα]-Δώρα[Πραγματικά\nΈξοδα]","v":{"v":0,"d":"0 €"}}]
[null,"Άθροισμα",{"$f":"SUBTOTAL(109,Αποταμιεύσεις[Προβλεπόμενα\nΈξοδα])","v":{"v":0,"d":"0 €"}},{"$f":"SUBTOTAL(109,Αποταμιεύσεις[Πραγματικά\nΈξοδα])","v":{"v":0,"d":"0 €"}},{"$f":"SUBTOTAL(109,Αποταμιεύσεις[Διαφορά])","v":{"v":0,"d":"0 €"}},null,"Άθροισμα",{"$f":"SUBTOTAL(109,Δώρα[Προβλεπόμενα\nΈξοδα])","v":{"v":0,"d":"0 €"}},{"$f":"SUBTOTAL(109,Δώρα[Πραγματικά\nΈξοδα])","v":{"v":0,"d":"0 €"}},{"$f":"SUBTOTAL(109,Δώρα[Διαφορά])","v":{"v":0,"d":"0 €"}}]